[Event "Titled Tuesday Blitz October 19 2021"]
[White "Gaehwiler, Gabriel"]
[Black "Sethuraman, S.P."]
[WhiteFideId "1314530"]
[BlackFideId "5021596"]
[WhiteElo "2320"]
[BlackElo "2477"]
[Result "1/2-1/2"]
[Round "08"]
[TimeControl "180+1"]
[Date "2021.10.19"]
[WhiteClock "0:00:08"]
[BlackClock "0:00:53"]

1. d4 {[%clk 0:03:00]}  Nf6 {[%clk 0:02:59]} 2. c4 {[%clk 0:03:00]}  e6 {[%clk 0:02:59]} 3. Nf3 {[%clk 0:03:01]}  d5 {[%clk 0:02:59]} 4. g3 {[%clk 0:03:01]}  dxc4 {[%clk 0:02:59]} 5. Bg2 {[%clk 0:03:01]}  a6 {[%clk 0:02:58]} 6. O-O {[%clk 0:02:58]}  Nc6 {[%clk 0:02:58]} 7. Nbd2 {[%clk 0:02:53]}  b5 {[%clk 0:02:56]} 8. Ne5 {[%clk 0:02:45]}  Nxe5 {[%clk 0:02:55]} 9. Bxa8 {[%clk 0:02:43]}  Qxd4 {[%clk 0:02:51]} 10. Nf3 {[%clk 0:02:43]}  Nxf3+ {[%clk 0:02:45]} 11. Bxf3 {[%clk 0:02:42]}  Qb6 {[%clk 0:02:46]} 12. a4 {[%clk 0:02:41]}  Bc5 {[%clk 0:02:38]} 13. Bg5 {[%clk 0:02:40]}  Bd4 {[%clk 0:02:31]} 14. Qd2 {[%clk 0:02:33]}  O-O {[%clk 0:02:24]} 15. Rad1 {[%clk 0:02:31]}  c5 {[%clk 0:02:08]} 16. e3 {[%clk 0:01:37]}  Be5 {[%clk 0:02:07]} 17. Bf4 {[%clk 0:01:38]}  Bxf4 {[%clk 0:02:05]} 18. exf4 {[%clk 0:01:37]}  Nd5 {[%clk 0:01:40]} 19. axb5 {[%clk 0:01:05]}  axb5 {[%clk 0:01:34]} 20. Bxd5 {[%clk 0:01:04]}  exd5 {[%clk 0:01:28]} 21. Qxd5 {[%clk 0:01:04]}  b4 {[%clk 0:01:28]} 22. Rfe1 {[%clk 0:00:55]}  Be6 {[%clk 0:01:19]} 23. Qd6 {[%clk 0:00:50]}  Qxd6 {[%clk 0:01:15]} 24. Rxd6 {[%clk 0:00:51]}  g6 {[%clk 0:01:15]} 25. Rc6 {[%clk 0:00:48]}  Ra8 {[%clk 0:01:13]} 26. Rxc5 {[%clk 0:00:41]}  Ra2 {[%clk 0:01:13]} 27. Rxe6 {[%clk 0:00:33]}  fxe6 {[%clk 0:01:14]} 28. Rxc4 {[%clk 0:00:32]}  Rxb2 {[%clk 0:01:14]} 29. Rc7 {[%clk 0:00:32]}  b3 {[%clk 0:01:12]} 30. Rb7 {[%clk 0:00:32]}  Rb1+ {[%clk 0:01:09]} 31. Kg2 {[%clk 0:00:32]}  b2 {[%clk 0:01:09]} 32. h4 {[%clk 0:00:32]}  Kf8 {[%clk 0:01:09]} 33. Kf3 {[%clk 0:00:32]}  h5 {[%clk 0:01:08]} 34. Ke2 {[%clk 0:00:26]}  Ke8 {[%clk 0:01:08]} 35. Kd2 {[%clk 0:00:14]}  Kd8 {[%clk 0:01:07]} 36. Kc2 {[%clk 0:00:13]}  Rf1 {[%clk 0:01:06]} 37. Kxb2 {[%clk 0:00:11]}  Rxf2+ {[%clk 0:01:07]} 38. Kc3 {[%clk 0:00:11]}  Rf3+ {[%clk 0:01:06]} 39. Kd4 {[%clk 0:00:12]}  Rxg3 {[%clk 0:01:07]} 40. Ke5 {[%clk 0:00:12]}  Rg4 {[%clk 0:01:07]} 41. Kd6 {[%clk 0:00:06]}  Kc8 {[%clk 0:01:01]} 42. Rg7 {[%clk 0:00:06]}  Rxh4 {[%clk 0:00:59]} 43. Rxg6 {[%clk 0:00:05]}  Rxf4 {[%clk 0:00:59]} 44. Kxe6 {[%clk 0:00:06]}  h4 {[%clk 0:01:00]} 45. Rh6 {[%clk 0:00:06]}  Kd8 {[%clk 0:00:56]} 46. Ke5 {[%clk 0:00:06]}  Ra4 {[%clk 0:00:54]} 47. Kf5 {[%clk 0:00:06]}  Ke7 {[%clk 0:00:55]} 48. Kg5 {[%clk 0:00:07]}  Kf7 {[%clk 0:00:53]} 49. Rxh4 {[%clk 0:00:07]}  Rxh4 {[%clk 0:00:53]} 50. Kxh4 {[%clk 0:00:08]} 1/2-1/2


[Site "https://www.chess.com"]

[Event "Titled Tuesday Blitz October 19 2021"]
[White "Indjic, Aleksandar"]
[Black "Harshavardhan G B"]
[WhiteFideId "911925"]
[BlackFideId "25059009"]
[WhiteElo "2643"]
[BlackElo "1825"]
[Result "1-0"]
[Round "08"]
[TimeControl "180+1"]
[Date "2021.10.19"]
[WhiteClock "0:01:02"]
[BlackClock "0:00:07"]

1. d4 {[%clk 0:03:00]}  d5 {[%clk 0:02:59]} 2. Nf3 {[%clk 0:03:01]}  Nf6 {[%clk 0:02:57]} 3. Bf4 {[%clk 0:03:01]}  c5 {[%clk 0:02:56]} 4. e3 {[%clk 0:03:00]}  Nc6 {[%clk 0:02:55]} 5. Nbd2 {[%clk 0:02:59]}  g6 {[%clk 0:02:54]} 6. dxc5 {[%clk 0:02:58]}  Bg7 {[%clk 0:02:53]} 7. Bb5 {[%clk 0:02:41]}  O-O {[%clk 0:02:48]} 8. c3 {[%clk 0:02:35]}  Nd7 {[%clk 0:02:45]} 9. Nb3 {[%clk 0:02:31]}  a6 {[%clk 0:02:42]} 10. Be2 {[%clk 0:02:26]}  Nf6 {[%clk 0:02:15]} 11. O-O {[%clk 0:02:22]}  Ne4 {[%clk 0:02:14]} 12. Nfd2 {[%clk 0:02:19]}  Bf5 {[%clk 0:02:09]} 13. Nxe4 {[%clk 0:02:18]}  Bxe4 {[%clk 0:02:10]} 14. Bd3 {[%clk 0:02:10]}  f5 {[%clk 0:01:58]} 15. Bxe4 {[%clk 0:02:08]}  fxe4 {[%clk 0:01:57]} 16. Bg3 {[%clk 0:02:07]}  e5 {[%clk 0:01:50]} 17. Nd2 {[%clk 0:02:05]}  Qe7 {[%clk 0:01:22]} 18. b4 {[%clk 0:02:04]}  Rad8 {[%clk 0:01:21]} 19. Qc2 {[%clk 0:02:01]}  h5 {[%clk 0:01:18]} 20. h3 {[%clk 0:02:00]}  Qe6 {[%clk 0:00:50]} 21. a3 {[%clk 0:01:58]}  g5 {[%clk 0:00:40]} 22. c4 {[%clk 0:01:58]}  h4 {[%clk 0:00:40]} 23. Bh2 {[%clk 0:01:56]}  g4 {[%clk 0:00:40]} 24. cxd5 {[%clk 0:01:54]}  Rxd5 {[%clk 0:00:40]} 25. hxg4 {[%clk 0:01:52]}  Rfd8 {[%clk 0:00:27]} 26. Nxe4 {[%clk 0:01:50]}  Qxg4 {[%clk 0:00:27]} 27. f3 {[%clk 0:01:49]}  Qg6 {[%clk 0:00:26]} 28. Rad1 {[%clk 0:01:47]}  h3 {[%clk 0:00:23]} 29. g4 {[%clk 0:01:41]}  Bh6 {[%clk 0:00:21]} 30. Kf2 {[%clk 0:01:40]}  Kg7 {[%clk 0:00:07]} 31. Rxd5 {[%clk 0:01:38]}  Rxd5 {[%clk 0:00:08]} 32. Rd1 {[%clk 0:01:38]}  Qf7 {[%clk 0:00:07]} 33. g5 {[%clk 0:01:36]}  Rxd1 {[%clk 0:00:03]} 34. Qxd1 {[%clk 0:01:36]}  Qa2+ {[%clk 0:00:04]} 35. Qe2 {[%clk 0:01:36]}  Qxa3 {[%clk 0:00:04]} 36. gxh6+ {[%clk 0:01:35]}  Kxh6 {[%clk 0:00:05]} 37. Kg3 {[%clk 0:01:34]}  Qxb4 {[%clk 0:00:04]} 38. Kxh3 {[%clk 0:01:33]}  Qb3 {[%clk 0:00:04]} 39. Kg2 {[%clk 0:01:30]}  a5 {[%clk 0:00:04]} 40. f4 {[%clk 0:01:27]}  Qd5 {[%clk 0:00:04]} 41. Qf3 {[%clk 0:01:26]}  a4 {[%clk 0:00:04]} 42. f5 {[%clk 0:01:18]}  a3 {[%clk 0:00:04]} 43. Qg4 {[%clk 0:01:18]}  Kh7 {[%clk 0:00:02]} 44. Kh3 {[%clk 0:01:14]}  Qf7 {[%clk 0:00:02]} 45. Ng5+ {[%clk 0:01:13]}  Kg7 {[%clk 0:00:02]} 46. Nxf7+ {[%clk 0:01:13]}  Kxf7 {[%clk 0:00:03]} 47. Qc4+ {[%clk 0:01:12]}  Kf6 {[%clk 0:00:04]} 48. Qa2 {[%clk 0:01:12]}  Kg5 {[%clk 0:00:05]} 49. Qxa3 {[%clk 0:01:11]}  Kxf5 {[%clk 0:00:06]} 50. Qb3 {[%clk 0:01:10]}  Ke4 {[%clk 0:00:07]} 51. Qxb7 {[%clk 0:01:09]}  Kxe3 {[%clk 0:00:08]} 52. Qxc6 {[%clk 0:01:08]}  Kd4 {[%clk 0:00:08]} 53. Qd6+ {[%clk 0:01:07]}  Kc4 {[%clk 0:00:09]} 54. Bxe5 {[%clk 0:01:06]}  Kb5 {[%clk 0:00:09]} 55. c6 {[%clk 0:01:06]}  Ka6 {[%clk 0:00:10]} 56. c7+ {[%clk 0:01:05]}  Kb7 {[%clk 0:00:11]} 57. Qd5+ {[%clk 0:01:05]}  Kb6 {[%clk 0:00:08]} 58. Qd6+ {[%clk 0:01:04]}  Kb7 {[%clk 0:00:08]} 59. c8=Q+ {[%clk 0:01:03]}  Ka7 {[%clk 0:00:07]} 60. Qda6# {[%clk 0:01:02]} 1-0


[Site "https://www.chess.com"]

[Event "Titled Tuesday Blitz October 19 2021"]
[White "Langrock, Hannes"]
[Black "Moroni, Luca Jr"]
[WhiteFideId "4655290"]
[BlackFideId "865834"]
[WhiteElo "2325"]
[BlackElo "2491"]
[Result "0-1"]
[Round "08"]
[TimeControl "180+1"]
[Date "2021.10.19"]
[WhiteClock "0:00:01"]
[BlackClock "0:01:21"]

1. d4 {[%clk 0:02:59]}  g6 {[%clk 0:03:00]} 2. c4 {[%clk 0:02:59]}  Bg7 {[%clk 0:03:00]} 3. Nf3 {[%clk 0:02:59]}  d6 {[%clk 0:03:00]} 4. g3 {[%clk 0:02:57]}  Bd7 {[%clk 0:03:00]} 5. Bg2 {[%clk 0:02:55]}  Qc8 {[%clk 0:03:00]} 6. h3 {[%clk 0:02:47]}  Nc6 {[%clk 0:03:00]} 7. Nc3 {[%clk 0:02:46]}  Nf6 {[%clk 0:03:00]} 8. b3 {[%clk 0:02:35]}  O-O {[%clk 0:02:55]} 9. Bb2 {[%clk 0:02:35]}  e5 {[%clk 0:02:55]} 10. dxe5 {[%clk 0:02:31]}  Nxe5 {[%clk 0:02:53]} 11. Qd2 {[%clk 0:02:19]}  a5 {[%clk 0:02:48]} 12. Nd5 {[%clk 0:02:10]}  Nxd5 {[%clk 0:02:47]} 13. cxd5 {[%clk 0:02:08]}  Re8 {[%clk 0:02:46]} 14. Nxe5 {[%clk 0:02:03]}  Bxe5 {[%clk 0:02:47]} 15. Rc1 {[%clk 0:02:00]}  a4 {[%clk 0:02:41]} 16. b4 {[%clk 0:01:55]}  a3 {[%clk 0:02:41]} 17. Bxe5 {[%clk 0:01:54]}  Rxe5 {[%clk 0:02:42]} 18. Qc3 {[%clk 0:01:51]}  c6 {[%clk 0:02:29]} 19. dxc6 {[%clk 0:01:45]}  bxc6 {[%clk 0:02:29]} 20. Bxc6 {[%clk 0:01:31]}  Bxc6 {[%clk 0:02:00]} 21. Qxc6 {[%clk 0:01:30]}  Qxc6 {[%clk 0:02:01]} 22. Rxc6 {[%clk 0:01:30]}  Rb8 {[%clk 0:02:02]} 23. Rc3 {[%clk 0:00:55]}  Rxb4 {[%clk 0:01:59]} 24. O-O {[%clk 0:00:55]}  Rxe2 {[%clk 0:01:57]} 25. Rxa3 {[%clk 0:00:55]}  Rd2 {[%clk 0:01:57]} 26. Rf3 {[%clk 0:00:47]}  Rxa2 {[%clk 0:01:54]} 27. Rd1 {[%clk 0:00:47]}  Rb6 {[%clk 0:01:53]} 28. Rfd3 {[%clk 0:00:42]}  Rbb2 {[%clk 0:01:49]} 29. Rf3 {[%clk 0:00:43]}  Rd2 {[%clk 0:01:48]} 30. Rc1 {[%clk 0:00:36]}  Ra7 {[%clk 0:01:47]} 31. Rc8+ {[%clk 0:00:29]}  Kg7 {[%clk 0:01:47]} 32. Rd8 {[%clk 0:00:29]}  h5 {[%clk 0:01:44]} 33. h4 {[%clk 0:00:29]}  Rb7 {[%clk 0:01:43]} 34. Kg2 {[%clk 0:00:29]}  d5 {[%clk 0:01:43]} 35. Rf4 {[%clk 0:00:29]}  Re7 {[%clk 0:01:40]} 36. Kf3 {[%clk 0:00:26]}  Ree2 {[%clk 0:01:36]} 37. Kg2 {[%clk 0:00:24]}  Re6 {[%clk 0:01:37]} 38. Kf3 {[%clk 0:00:23]}  Rd3+ {[%clk 0:01:33]} 39. Kg2 {[%clk 0:00:23]}  Rf6 {[%clk 0:01:33]} 40. Rxf6 {[%clk 0:00:18]}  Kxf6 {[%clk 0:01:34]} 41. Re8 {[%clk 0:00:16]}  Ra3 {[%clk 0:01:30]} 42. Kf1 {[%clk 0:00:14]}  Ra6 {[%clk 0:01:27]} 43. Rd8 {[%clk 0:00:11]}  Ke6 {[%clk 0:01:26]} 44. Ke2 {[%clk 0:00:11]}  Rd6 {[%clk 0:01:25]} 45. Re8+ {[%clk 0:00:11]}  Kf5 {[%clk 0:01:25]} 46. Kd3 {[%clk 0:00:10]}  Kg4 {[%clk 0:01:24]} 47. Re3 {[%clk 0:00:06]}  Rf6 {[%clk 0:01:23]} 48. f4 {[%clk 0:00:06]}  Re6 {[%clk 0:01:21]} 49. Re5 {[%clk 0:00:01]}  Rxe5 {[%clk 0:01:21]} 0-1


[Site "https://www.chess.com"]

[Event "Titled Tuesday Blitz October 19 2021"]
[White "Lugovskoy, Maxim"]
[Black "Bluebaum, Matthias"]
[WhiteFideId "24126454"]
[BlackFideId "24651516"]
[WhiteElo "2466"]
[BlackElo "2681"]
[Result "0-1"]
[Round "08"]
[TimeControl "180+1"]
[Date "2021.10.19"]
[WhiteClock "0:00:01"]
[BlackClock "0:01:27"]

1. e4 {[%clk 0:03:00]}  e6 {[%clk 0:02:59]} 2. d4 {[%clk 0:03:00]}  d5 {[%clk 0:03:00]} 3. Nc3 {[%clk 0:03:01]}  Nf6 {[%clk 0:03:00]} 4. Bg5 {[%clk 0:02:58]}  h6 {[%clk 0:03:01]} 5. Bxf6 {[%clk 0:02:54]}  Qxf6 {[%clk 0:03:01]} 6. e5 {[%clk 0:02:54]}  Qd8 {[%clk 0:03:01]} 7. f4 {[%clk 0:02:54]}  c5 {[%clk 0:02:57]} 8. Nf3 {[%clk 0:02:55]}  Nc6 {[%clk 0:02:58]} 9. Bb5 {[%clk 0:02:54]}  cxd4 {[%clk 0:02:51]} 10. Qxd4 {[%clk 0:02:51]}  Bd7 {[%clk 0:02:50]} 11. Bxc6 {[%clk 0:02:50]}  bxc6 {[%clk 0:02:50]} 12. O-O {[%clk 0:02:50]}  Qb6 {[%clk 0:02:47]} 13. Kh1 {[%clk 0:02:50]}  Qxd4 {[%clk 0:02:43]} 14. Nxd4 {[%clk 0:02:51]}  Rb8 {[%clk 0:02:43]} 15. b3 {[%clk 0:02:50]}  Ba3 {[%clk 0:02:40]} 16. Rad1 {[%clk 0:02:49]}  g6 {[%clk 0:02:38]} 17. Nce2 {[%clk 0:02:10]}  O-O {[%clk 0:02:34]} 18. g4 {[%clk 0:02:07]}  c5 {[%clk 0:02:31]} 19. Nf3 {[%clk 0:02:07]}  Bc6 {[%clk 0:02:24]} 20. Ng3 {[%clk 0:02:07]}  Bb2 {[%clk 0:02:14]} 21. h4 {[%clk 0:02:02]}  a5 {[%clk 0:02:13]} 22. Kh2 {[%clk 0:02:01]}  a4 {[%clk 0:02:12]} 23. f5 {[%clk 0:02:00]}  axb3 {[%clk 0:02:12]} 24. axb3 {[%clk 0:02:00]}  Ra8 {[%clk 0:02:09]} 25. Rde1 {[%clk 0:01:39]}  Bc3 {[%clk 0:02:06]} 26. Re3 {[%clk 0:01:21]}  d4 {[%clk 0:02:06]} 27. Rd3 {[%clk 0:01:17]}  Bb5 {[%clk 0:02:05]} 28. Ne4 {[%clk 0:01:17]}  Ra2 {[%clk 0:02:03]} 29. Nf6+ {[%clk 0:01:04]}  Kh8 {[%clk 0:02:00]} 30. Rxc3 {[%clk 0:00:57]}  dxc3 {[%clk 0:01:58]} 31. Rc1 {[%clk 0:00:51]}  exf5 {[%clk 0:01:54]} 32. gxf5 {[%clk 0:00:50]}  Bd3 {[%clk 0:01:54]} 33. Kg3 {[%clk 0:00:42]}  Bxf5 {[%clk 0:01:53]} 34. h5 {[%clk 0:00:38]}  Rxc2 {[%clk 0:01:53]} 35. Rd1 {[%clk 0:00:37]}  Rb2 {[%clk 0:01:47]} 36. hxg6 {[%clk 0:00:33]}  c2 {[%clk 0:01:36]} 37. Rh1 {[%clk 0:00:27]}  Bxg6 {[%clk 0:01:29]} 38. Rxh6+ {[%clk 0:00:02]}  Kg7 {[%clk 0:01:29]} 39. Rh1 {[%clk 0:00:01]}  Rb1 {[%clk 0:01:28]} 40. Ng5 {[%clk 0:00:01]}  Rxh1 {[%clk 0:01:27]} 0-1


[Site "https://www.chess.com"]

[Event "Titled Tuesday Blitz October 19 2021"]
[White "Maksimovic, Bojan"]
[Black "Hambleton, Aman"]
[WhiteFideId "14408120"]
[BlackFideId "2606577"]
[WhiteElo "2439"]
[BlackElo "2552"]
[Result "1-0"]
[Round "08"]
[TimeControl "180+1"]
[Date "2021.10.19"]
[WhiteClock "0:00:36"]
[BlackClock "0:00:02"]

1. d4 {[%clk 0:03:00]}  Nf6 {[%clk 0:02:59]} 2. Nf3 {[%clk 0:03:00]}  e6 {[%clk 0:02:50]} 3. c4 {[%clk 0:02:59]}  b6 {[%clk 0:02:46]} 4. Nc3 {[%clk 0:02:49]}  Bb4 {[%clk 0:02:38]} 5. Bd2 {[%clk 0:02:46]}  Bb7 {[%clk 0:02:37]} 6. a3 {[%clk 0:02:35]}  Bxc3 {[%clk 0:02:36]} 7. Bxc3 {[%clk 0:02:36]}  Ne4 {[%clk 0:02:15]} 8. Qc2 {[%clk 0:02:34]}  O-O {[%clk 0:02:06]} 9. Nd2 {[%clk 0:02:28]}  Nxc3 {[%clk 0:02:01]} 10. Qxc3 {[%clk 0:02:28]}  f5 {[%clk 0:01:55]} 11. e3 {[%clk 0:02:28]}  d6 {[%clk 0:01:43]} 12. Bd3 {[%clk 0:02:25]}  Bxg2 {[%clk 0:01:37]} 13. Rg1 {[%clk 0:02:25]}  Bb7 {[%clk 0:01:37]} 14. O-O-O {[%clk 0:02:24]}  Nd7 {[%clk 0:01:24]} 15. f4 {[%clk 0:01:40]}  Qf6 {[%clk 0:00:59]} 16. Rg5 {[%clk 0:01:37]}  Rf7 {[%clk 0:00:48]} 17. Rdg1 {[%clk 0:01:37]}  c5 {[%clk 0:00:43]} 18. d5 {[%clk 0:01:34]}  Qxc3+ {[%clk 0:00:30]} 19. bxc3 {[%clk 0:01:35]}  exd5 {[%clk 0:00:30]} 20. Bxf5 {[%clk 0:01:35]}  Nf8 {[%clk 0:00:21]} 21. cxd5 {[%clk 0:01:17]}  h6 {[%clk 0:00:10]} 22. Rh5 {[%clk 0:01:17]}  Bxd5 {[%clk 0:00:05]} 23. Bg6 {[%clk 0:01:09]}  Nxg6 {[%clk 0:00:04]} 24. Rxd5 {[%clk 0:01:07]}  Ne7 {[%clk 0:00:03]} 25. Rxd6 {[%clk 0:01:08]}  Nf5 {[%clk 0:00:04]} 26. Rd3 {[%clk 0:01:08]}  Re8 {[%clk 0:00:03]} 27. e4 {[%clk 0:01:06]}  Ne7 {[%clk 0:00:03]} 28. f5 {[%clk 0:01:02]}  Nc6 {[%clk 0:00:03]} 29. Rd6 {[%clk 0:01:00]}  Ne5 {[%clk 0:00:02]} 30. Rxh6 {[%clk 0:00:57]}  Rd7 {[%clk 0:00:02]} 31. Rh3 {[%clk 0:00:52]}  Kf8 {[%clk 0:00:01]} 32. Rh8+ {[%clk 0:00:48]}  Kf7 {[%clk 0:00:01]} 33. Rxg7+ {[%clk 0:00:46]}  Kxg7 {[%clk 0:00:02]} 34. Rxe8 {[%clk 0:00:46]}  Nd3+ {[%clk 0:00:02]} 35. Kd1 {[%clk 0:00:44]}  Nb2+ {[%clk 0:00:02]} 36. Kc2 {[%clk 0:00:44]}  Na4 {[%clk 0:00:02]} 37. e5 {[%clk 0:00:41]}  b5 {[%clk 0:00:02]} 38. e6 {[%clk 0:00:37]}  Rd6 {[%clk 0:00:01]} 39. Re7+ {[%clk 0:00:35]}  Kf6 {[%clk 0:00:01]} 40. Rf7+ {[%clk 0:00:36]}  Ke5 {[%clk 0:00:02]} 41. e7 {[%clk 0:00:36]}  Kd5 {[%clk 0:00:02]} 42. e8=Q {[%clk 0:00:36]} 1-0


[Site "https://www.chess.com"]

[Event "Titled Tuesday Blitz October 19 2021"]
[White "Maly, Alexey"]
[Black "Gurvich, Vitaly"]
[WhiteFideId "14103184"]
[BlackFideId "24164852"]
[WhiteElo "2294"]
[BlackElo "2275"]
[Result "1/2-1/2"]
[Round "08"]
[TimeControl "180+1"]
[Date "2021.10.19"]
[WhiteClock "0:00:14"]
[BlackClock "0:00:09"]

1. d4 {[%clk 0:03:00]}  Nf6 {[%clk 0:02:57]} 2. c4 {[%clk 0:03:00]}  g6 {[%clk 0:02:51]} 3. Nc3 {[%clk 0:02:58]}  d5 {[%clk 0:02:47]} 4. cxd5 {[%clk 0:02:59]}  Nxd5 {[%clk 0:02:42]} 5. e4 {[%clk 0:03:00]}  Nxc3 {[%clk 0:02:39]} 6. bxc3 {[%clk 0:03:00]}  Bg7 {[%clk 0:02:36]} 7. Nf3 {[%clk 0:03:01]}  c5 {[%clk 0:02:36]} 8. Be3 {[%clk 0:03:01]}  Qa5 {[%clk 0:02:33]} 9. Qd2 {[%clk 0:03:01]}  O-O {[%clk 0:02:33]} 10. Rc1 {[%clk 0:03:01]}  Rd8 {[%clk 0:02:30]} 11. d5 {[%clk 0:02:59]}  e6 {[%clk 0:02:15]} 12. Bg5 {[%clk 0:02:55]}  f6 {[%clk 0:02:11]} 13. Be3 {[%clk 0:02:53]}  exd5 {[%clk 0:02:11]} 14. exd5 {[%clk 0:02:54]}  Bg4 {[%clk 0:02:10]} 15. Be2 {[%clk 0:02:49]}  Bxf3 {[%clk 0:02:08]} 16. Bxf3 {[%clk 0:02:48]}  Nd7 {[%clk 0:02:07]} 17. O-O {[%clk 0:02:46]}  Ne5 {[%clk 0:02:06]} 18. Be2 {[%clk 0:02:46]}  c4 {[%clk 0:02:04]} 19. Rfd1 {[%clk 0:02:46]}  Rac8 {[%clk 0:01:59]} 20. Qb2 {[%clk 0:02:32]}  b6 {[%clk 0:01:57]} 21. f4 {[%clk 0:02:18]}  Nf7 {[%clk 0:01:52]} 22. Qb4 {[%clk 0:02:03]}  Qxb4 {[%clk 0:01:37]} 23. cxb4 {[%clk 0:02:04]}  Nd6 {[%clk 0:01:26]} 24. a4 {[%clk 0:01:51]}  Re8 {[%clk 0:01:25]} 25. Kf2 {[%clk 0:01:49]}  f5 {[%clk 0:01:17]} 26. Bf3 {[%clk 0:01:34]}  Re7 {[%clk 0:01:12]} 27. Bd4 {[%clk 0:01:30]}  Bxd4+ {[%clk 0:01:10]} 28. Rxd4 {[%clk 0:01:30]}  Kg7 {[%clk 0:01:07]} 29. Rd2 {[%clk 0:01:26]}  Kf6 {[%clk 0:00:54]} 30. Re2 {[%clk 0:01:22]}  Rxe2+ {[%clk 0:00:53]} 31. Kxe2 {[%clk 0:01:22]}  Re8+ {[%clk 0:00:52]} 32. Kd2 {[%clk 0:01:20]}  g5 {[%clk 0:00:52]} 33. fxg5+ {[%clk 0:01:18]}  Kxg5 {[%clk 0:00:53]} 34. b5 {[%clk 0:01:16]}  Re5 {[%clk 0:00:46]} 35. Kc3 {[%clk 0:01:11]}  Re3+ {[%clk 0:00:45]} 36. Kd4 {[%clk 0:01:11]}  Kf4 {[%clk 0:00:36]} 37. Rc3 {[%clk 0:00:59]}  Rxc3 {[%clk 0:00:24]} 38. Kxc3 {[%clk 0:01:00]}  Ke3 {[%clk 0:00:23]} 39. Bh5 {[%clk 0:00:53]}  f4 {[%clk 0:00:23]} 40. Bf3 {[%clk 0:00:50]}  h6 {[%clk 0:00:22]} 41. Bh5 {[%clk 0:00:48]}  Ke4 {[%clk 0:00:20]} 42. Bf3+ {[%clk 0:00:46]}  Ke5 {[%clk 0:00:20]} 43. h3 {[%clk 0:00:42]}  Kf5 {[%clk 0:00:20]} 44. Kd4 {[%clk 0:00:40]}  c3 {[%clk 0:00:16]} 45. Kxc3 {[%clk 0:00:36]}  Ke5 {[%clk 0:00:16]} 46. Kd3 {[%clk 0:00:34]}  Nb7 {[%clk 0:00:16]} 47. Bd1 {[%clk 0:00:29]}  Nc5+ {[%clk 0:00:15]} 48. Kc4 {[%clk 0:00:27]}  Nb7 {[%clk 0:00:15]} 49. Kd3 {[%clk 0:00:23]}  Nc5+ {[%clk 0:00:15]} 50. Ke2 {[%clk 0:00:23]}  Kxd5 {[%clk 0:00:15]} 51. Kf3 {[%clk 0:00:23]}  Ke5 {[%clk 0:00:15]} 52. Kg4 {[%clk 0:00:21]}  Nd3 {[%clk 0:00:02]} 53. Bf3 {[%clk 0:00:19]}  Kf6 {[%clk 0:00:01]} 54. Be4 {[%clk 0:00:17]}  Nc5 {[%clk 0:00:02]} 55. Kxf4 {[%clk 0:00:17]}  Nxa4 {[%clk 0:00:02]} 56. g4 {[%clk 0:00:15]}  Nc5 {[%clk 0:00:03]} 57. Bc2 {[%clk 0:00:15]}  a6 {[%clk 0:00:03]} 58. bxa6 {[%clk 0:00:15]}  Nxa6 {[%clk 0:00:03]} 59. h4 {[%clk 0:00:15]}  Nc5 {[%clk 0:00:04]} 60. g5+ {[%clk 0:00:15]}  hxg5+ {[%clk 0:00:05]} 61. hxg5+ {[%clk 0:00:15]}  Kg7 {[%clk 0:00:06]} 62. Ke5 {[%clk 0:00:15]}  b5 {[%clk 0:00:06]} 63. Kd5 {[%clk 0:00:14]}  Nd7 {[%clk 0:00:06]} 64. Ke6 {[%clk 0:00:13]}  Nf8+ {[%clk 0:00:07]} 65. Kd5 {[%clk 0:00:13]}  b4 {[%clk 0:00:08]} 66. Kc4 {[%clk 0:00:14]}  Ne6 {[%clk 0:00:08]} 67. g6 {[%clk 0:00:14]}  Nf4 {[%clk 0:00:08]} 68. Kxb4 {[%clk 0:00:14]}  Nxg6 {[%clk 0:00:09]} 1/2-1/2


[Site "https://www.chess.com"]

[Event "Titled Tuesday Blitz October 19 2021"]
[White "Materia, Marco"]
[Black "Salinas Herrera, Pablo"]
[WhiteFideId "45150451"]
[BlackFideId "3407128"]
[WhiteElo "2590"]
[BlackElo "2541"]
[Result "1-0"]
[Round "08"]
[TimeControl "180+1"]
[Date "2021.10.19"]
[WhiteClock "0:00:19"]
[BlackClock "0:00:02"]

1. d4 {[%clk 0:03:00]}  d5 {[%clk 0:02:58]} 2. c4 {[%clk 0:03:00]}  c6 {[%clk 0:02:57]} 3. Nf3 {[%clk 0:02:57]}  Nf6 {[%clk 0:02:58]} 4. Nc3 {[%clk 0:02:57]}  e6 {[%clk 0:02:58]} 5. e3 {[%clk 0:02:57]}  Nbd7 {[%clk 0:02:58]} 6. Bd3 {[%clk 0:02:58]}  dxc4 {[%clk 0:02:58]} 7. Bxc4 {[%clk 0:02:58]}  b5 {[%clk 0:02:53]} 8. Bd3 {[%clk 0:02:59]}  a6 {[%clk 0:02:53]} 9. e4 {[%clk 0:02:55]}  c5 {[%clk 0:02:52]} 10. e5 {[%clk 0:02:50]}  cxd4 {[%clk 0:02:49]} 11. Ne2 {[%clk 0:02:39]}  Ng4 {[%clk 0:02:44]} 12. Be4 {[%clk 0:02:37]}  Rb8 {[%clk 0:02:42]} 13. Bf4 {[%clk 0:02:29]}  Qa5+ {[%clk 0:02:26]} 14. Kf1 {[%clk 0:02:12]}  Qb6 {[%clk 0:02:10]} 15. Nexd4 {[%clk 0:02:06]}  Bc5 {[%clk 0:02:04]} 16. h3 {[%clk 0:01:55]}  Bxd4 {[%clk 0:01:37]} 17. Nxd4 {[%clk 0:01:40]}  Ngxe5 {[%clk 0:01:36]} 18. Nf3 {[%clk 0:01:40]}  f6 {[%clk 0:01:21]} 19. Nxe5 {[%clk 0:01:35]}  Nxe5 {[%clk 0:01:12]} 20. Bxe5 {[%clk 0:01:31]}  fxe5 {[%clk 0:01:13]} 21. Qh5+ {[%clk 0:01:31]}  Kf8 {[%clk 0:01:14]} 22. Qxe5 {[%clk 0:01:30]}  b4 {[%clk 0:00:11]} 23. Rd1 {[%clk 0:01:23]}  Kf7 {[%clk 0:00:11]} 24. Qf4+ {[%clk 0:01:11]}  Ke7 {[%clk 0:00:09]} 25. Rc1 {[%clk 0:00:43]}  Bd7 {[%clk 0:00:07]} 26. Qg5+ {[%clk 0:00:40]}  Kf7 {[%clk 0:00:07]} 27. h4 {[%clk 0:00:39]}  Qb5+ {[%clk 0:00:06]} 28. Qxb5 {[%clk 0:00:37]}  Bxb5+ {[%clk 0:00:06]} 29. Ke1 {[%clk 0:00:37]}  Rhc8 {[%clk 0:00:05]} 30. Kd2 {[%clk 0:00:38]}  g6 {[%clk 0:00:03]} 31. Ke3 {[%clk 0:00:37]}  Kf6 {[%clk 0:00:04]} 32. h5 {[%clk 0:00:37]}  g5 {[%clk 0:00:03]} 33. Bxh7 {[%clk 0:00:35]}  Rxc1 {[%clk 0:00:04]} 34. Rxc1 {[%clk 0:00:34]}  Rh8 {[%clk 0:00:04]} 35. Bg6 {[%clk 0:00:34]}  Rd8 {[%clk 0:00:05]} 36. Rc7 {[%clk 0:00:33]}  a5 {[%clk 0:00:05]} 37. Rf7+ {[%clk 0:00:33]}  Ke5 {[%clk 0:00:05]} 38. h6 {[%clk 0:00:33]}  Rh8 {[%clk 0:00:03]} 39. h7 {[%clk 0:00:33]}  Be8 {[%clk 0:00:03]} 40. Rg7 {[%clk 0:00:26]}  Bxg6 {[%clk 0:00:04]} 41. Rxg6 {[%clk 0:00:26]}  Kf5 {[%clk 0:00:03]} 42. Rh6 {[%clk 0:00:26]}  e5 {[%clk 0:00:02]} 43. g4+ {[%clk 0:00:24]}  Kxg4 {[%clk 0:00:02]} 44. Ke4 {[%clk 0:00:24]}  a4 {[%clk 0:00:03]} 45. Rh1 {[%clk 0:00:19]}  a3 {[%clk 0:00:02]} 46. b3 {[%clk 0:00:19]} 1-0


[Site "https://www.chess.com"]